bitfinex/quotes_SOLUSD_20250717
["timestamp","ask_amount","ask_price","bid_price","bid_amount"]
[1752726474917,0.03,170.38,170.37,16.73365521]
[1752726475122,0.03,170.38,170.37,18.27635521]
[1752726475724,0.03,170.38,170.37,12.40677724]
[1752726475933,0.03,170.38,170.37,7.31473862]
[1752726476434,0.03,170.38,170.37,12.40677724]
[1752726480741,0.03,170.38,170.37,5.77203862]
[1752726480940,0.03,170.38,170.35,0.7]
[1752726481131,0.03,170.38,170.37,5.09203862]
[1752726482023,0.03,170.38,170.37,5.79203862]
[1752726482226,0.03,170.38,170.37,10.88407724]
[1752726483350,0.03,170.38,170.37,16.75365521]
[1752726485346,0.03,170.38,170.37,46.71365521]
[1752726486327,0.03,170.38,170.37,40.84407724]
[1752726486848,0.03,170.38,170.37,46.71365521]
[1752726490534,0.03,170.38,170.37,16.75365521]
[1752726490725,0.03,170.38,170.37,46.69365521]
[1752726491535,0.03,170.38,170.37,40.82407724]
[1752726491931,0.03,170.38,170.37,10.88407724]
[1752726492132,0.03,170.38,170.35,26.0]
[1752726492341,0.03,170.38,170.37,5.09203862]
[1752726493134,0.03,170.38,170.37,5.79203862]
[1752726493344,0.03,170.38,170.37,10.88407724]
[1752726493734,0.03,170.38,170.37,16.75365521]
[1752726494661,0.03,170.4,170.39,26.0]
[1752726494865,0.03,170.4,170.39,31.09203862]
[1752726496648,0.03,170.4,170.39,31.79203862]
[1752726502481,0.03,170.4,170.39,26.7]
[1752726502650,0.03,170.4,170.39,31.79203862]
[1752726513853,0.03,170.4,170.39,31.09203862]
[1752726514095,0.7,170.4,170.39,31.09203862]
[1752726515980,6.5685446,170.4,170.39,31.09203862]
[1752726516164,5.8985446,170.4,170.39,31.09203862]
[1752726516765,0.03,170.4,170.39,31.76203862]
[1752726518288,0.03,170.4,170.39,37.63092763]
[1752726519184,0.03,170.4,170.39,31.76203862]
[1752726519591,0.03,170.4,170.39,61.68203862]
[1752726519966,0.03,170.4,170.39,67.55092763]
[1752726520776,0.03,170.4,170.39,61.68203862]
[1752726522064,0.03,170.44,170.39,67.55092763]
[1752726522278,0.03,170.44,170.43,5.09203862]
[1752726522476,0.03,170.44,170.43,35.01203862]
[1752726522677,0.03,170.44,170.43,35.68203862]
[1752726524186,0.03,170.45,170.43,41.5495502]
[1752726524372,0.03,170.45,170.44,5.76203862]
[1752726524579,0.03,170.45,170.44,31.09203862]
[1752726525294,0.7,170.45,170.44,5.09203862]
[1752726526171,6.56716364,170.45,170.44,5.09203862]
[1752726528768,0.7,170.45,170.44,5.09203862]
[1752726528983,0.03,170.45,170.44,5.09203862]
[1752726529187,0.03,170.45,170.44,5.76203862]
[1752726529577,0.03,170.45,170.44,31.76203862]
[1752726532223,0.03,170.47,170.46,26.0]
[1752726532393,0.03,170.51,170.46,66.10407724]
[1752726532602,0.03,170.51,170.5,5.09203862]
[1752726534627,0.03,170.51,170.5,5.75203862]
[1752726535302,0.03,170.51,170.5,31.75203862]
[1752726538422,0.03,170.51,170.5,31.09203862]
[1752726539918,0.03,170.51,170.5,31.75203862]
[1752726541116,0.03,170.51,170.5,37.61714125]
[1752726541615,0.03,170.52,170.5,67.51714125]
[1752726541815,0.03,170.52,170.51,5.75203862]
[1752726542122,0.03,170.52,170.51,10.40182449]
[1752726542430,0.03,170.55,170.54,26.0]
[1752726542640,0.03,170.55,170.54,31.09203862]
[1752726543146,0.03,170.55,170.54,31.75203862]
[1752726544635,0.03,170.55,170.54,42.70780422]
[1752726545540,0.03,170.56,170.54,72.60780422]
[1752726545743,0.03,170.56,170.55,10.84407724]
[1752726546111,6.62073057,170.63,170.58,26.0]
[1752726546410,5.96073057,170.63,170.62,5.09203862]
[1752726547039,6.62073057,170.63,170.62,5.09203862]
[1752726547332,6.62073057,170.63,170.59,5.09203862]
[1752726547551,0.66,170.62,170.6,5.09203862]
[1752726547725,0.66,170.62,170.61,5.09203862]
[1752726547926,5.96073057,170.63,170.61,5.09203862]
[1752726548112,6.62073057,170.63,170.62,5.09203862]
[1752726549213,6.62073057,170.63,170.58,0.66]
[1752726549412,5.96073057,170.63,170.62,5.09203862]
[1752726550127,6.62073057,170.63,170.62,5.09203862]
[1752726550326,5.96073057,170.63,170.62,5.09203862]
[1752726551630,6.62073057,170.63,170.59,26.0]
[1752726551832,6.62073057,170.63,170.62,5.09203862]
[1752726551833,5.96073057,170.63,170.62,5.09203862]
[1752726552224,6.62073057,170.63,170.62,5.09203862]
[1752726553146,5.96073057,170.63,170.62,5.09203862]
[1752726553512,6.62073057,170.63,170.59,26.0]
[1752726553709,0.66,170.62,170.6,5.09203862]
[1752726553930,0.66,170.62,170.59,5.09203862]
[1752726554133,0.66,170.62,170.6,5.09203862]
[1752726554932,20.61231587,170.63,170.58,0.66]
[1752726555161,5.86166471,170.6,170.57,26.0]
[1752726555341,5.86166471,170.6,170.59,5.09203862]
[1752726555531,0.66,170.59,170.54,26.66]
[1752726555732,0.66,170.59,170.57,5.09203862]
[1752726556139,0.66,170.59,170.53,0.66]
[1752726556339,0.66,170.59,170.56,5.09203862]
[1752726557143,5.86235197,170.58,170.56,5.09203862]
[1752726557356,5.86235197,170.58,170.57,5.09203862]
[1752726558339,5.86209168,170.59,170.57,5.09203862]
[1752726558841,5.86209168,170.59,170.56,0.66]
[1752726558842,5.86209168,170.59,170.58,5.09203862]
[1752726559255,6.52209168,170.59,170.54,0.66]
[1752726559570,6.52209168,170.59,170.58,5.09203862]
[1752726563662,5.86209168,170.59,170.58,5.09203862]
[1752726564543,6.57209168,170.59,170.58,5.09203862]
[1752726565265,5.86209168,170.59,170.58,5.09203862]
[1752726566048,6.57209168,170.59,170.58,5.09203862]
[1752726567348,6.57209168,170.59,170.55,26.69]
[1752726567550,0.71,170.58,170.56,5.09203862]
[1752726567849,0.71,170.57,170.56,5.09203862]
[1752726568284,21.22711249,170.59,170.56,5.09203862]
[1752726568567,0.71,170.58,170.57,5.09203862]
[1752726569345,5.86235197,170.58,170.57,5.09203862]
[1752726572273,5.86200832,170.59,170.57,5.09203862]
[1752726572450,5.86200832,170.59,170.56,0.69]
[1752726572451,5.86200832,170.59,170.58,5.09203862]
[1752726572773,6.57200832,170.59,170.58,5.09203862]
[1752726574663,5.86200832,170.59,170.58,5.09203862]
[1752726575350,5.86200832,170.59,170.58,5.78203862]
[1752726575674,5.86200832,170.59,170.58,5.09203862]
[1752726576662,6.57200832,170.59,170.58,5.09203862]
[1752726577367,5.86200832,170.59,170.58,5.09203862]
[1752726581870,5.86200832,170.59,170.56,0.75]
[1752726582077,5.86200832,170.59,170.58,5.09203862]
[1752726586759,6.57200832,170.59,170.58,5.09203862]
[1752726588275,5.86200832,170.59,170.58,5.09203862]
[1752726590761,5.86200832,170.59,170.58,5.78203862]
[1752726591277,5.86200832,170.59,170.58,5.09203862]
[1752726593672,5.86200832,170.59,170.58,5.78203862]
[1752726594382,5.86200832,170.59,170.58,5.09203862]
[1752726595465,5.89200832,170.59,170.58,5.77203862]
[1752726598573,5.89200832,170.59,170.58,5.09203862]
[1752726598777,5.89200832,170.59,170.57,0.68]
[1752726598973,5.89200832,170.59,170.58,5.09203862]
[1752726600185,5.89200832,170.59,170.57,0.68]
[1752726600364,5.89200832,170.59,170.58,5.09203862]
[1752726603089,5.89200832,170.59,170.58,3.23748984]
[1752726603472,6.57200832,170.59,170.58,3.23748984]
[1752726603969,5.89200832,170.59,170.58,3.23748984]
[1752726607683,5.89200832,170.59,170.58,3.91748984]
[1752726608484,5.89200832,170.59,170.58,3.23748984]
[1752726613505,5.89200832,170.59,170.56,0.74]
[1752726613802,5.89200832,170.59,170.58,3.23748984]
[1752726615405,5.89200832,170.59,170.58,3.91748984]
[1752726615993,0.03,170.59,170.58,3.91748984]
[1752726617001,0.1,170.63,170.59,1.6335]
[1752726617204,0.1,170.63,170.62,29.23748984]
[1752726617700,0.1,170.63,170.62,29.91748984]
[1752726618791,5.85899378,170.68,170.62,48.72842681]
[1752726618995,5.85927059,170.67,170.65,5.05247064]
[1752726619386,5.85927059,170.67,170.65,5.73247064]
[1752726619897,0.68,170.7,170.65,0.68]
[1752726620201,5.85857402,170.69,170.65,5.73247064]
[1752726620405,35.69833129,170.7,170.65,5.73247064]
[1752726621109,35.69833129,170.7,170.65,5.05247064]
[1752726621282,36.37833129,170.7,170.65,5.73247064]
[1752726622699,0.68,170.68,170.65,26.0]
[1752726622905,0.68,170.68,170.65,31.05247064]
[1752726623304,0.68,170.69,170.65,26.68]
[1752726623514,0.68,170.69,170.65,31.73247064]
[1752726623697,0.68,170.69,170.65,31.05247064]
[1752726623885,0.68,170.69,170.65,31.74247064]
[1752726624083,50.34390832,170.7,170.65,31.74247064]
[1752726624901,51.02390832,170.7,170.65,31.74247064]
[1752726625134,0.68,170.69,170.65,31.74247064]
[1752726625400,51.02390832,170.7,170.65,31.74247064]
[1752726625607,0.68,170.69,170.65,31.74247064]
[1752726626309,0.71,170.66,170.62,6.4648]
[1752726626610,0.71,170.66,170.65,5.05247064]
[1752726626815,0.03,170.66,170.65,5.05247064]
[1752726627192,0.03,170.66,170.65,5.74247064]
[1752726627786,0.03,170.66,170.65,31.74247064]
[1752726635910,0.03,170.66,170.65,37.6024179]
[1752726636889,0.03,170.66,170.65,31.74247064]
[1752726637313,0.03,170.66,170.65,61.58247064]
[1752726637494,0.03,170.66,170.65,11.6024179]
[1752726638621,30.52,170.74,170.68,26.0]
[1752726638804,0.1,170.76,170.73,10.10494128]
[1752726639103,0.1,170.76,170.75,29.22934746]
[1752726639999,5.9561724,170.76,170.75,29.22934746]
[1752726640198,0.1,170.76,170.75,29.22934746]
[1752726640408,5.9561724,170.76,170.75,29.22934746]
[1752726640720,0.1,170.76,170.75,29.22934746]
[1752726641018,0.1,170.76,170.75,5.73704251]
[1752726641188,0.1,170.76,170.75,31.73704251]
[1752726641392,5.9561724,170.76,170.75,31.04704251]
[1752726641808,6.6361724,170.76,170.75,31.04704251]
[1752726642012,5.9561724,170.76,170.75,31.04704251]
[1752726642405,0.1,170.76,170.75,31.04704251]
[1752726642605,0.1,170.76,170.75,31.73704251]
[1752726644503,0.1,170.76,170.75,26.69]
[1752726644802,0.1,170.76,170.75,31.73704251]
[1752726645300,0.19617055,170.8,170.77,26.0]
[1752726645503,0.19617055,170.8,170.79,5.04704251]
[1752726645910,0.19617055,170.8,170.79,22.52172648]
[1752726646301,0.1,170.84,170.79,27.56876899]
[1752726646502,0.1,170.84,170.83,26.0]
[1752726647117,6.63343011,170.84,170.83,26.0]
[1752726647434,0.1,170.84,170.83,26.0]
[1752726647726,0.1,170.84,170.83,31.73704251]
[1752726648111,0.1,170.84,170.83,26.69]
[1752726648524,0.1,170.84,170.83,31.73704251]
[1752726648907,0.1,170.84,170.83,26.69]
[1752726649249,0.1,170.84,170.83,31.73704251]
[1752726649749,0.1,170.84,170.83,31.04704251]
[1752726650339,0.1,170.84,170.83,31.73704251]
[1752726651006,0.1,170.84,170.83,61.73704251]
[1752726651453,0.1,170.84,170.83,67.59081526]
[1752726652052,0.1,170.84,170.83,61.73704251]
[1752726655358,0.1,170.84,170.83,61.04704251]
[1752726656136,0.1,170.84,170.83,61.76704251]
[1752726656552,0.1,170.84,170.83,31.76704251]
[1752726656758,0.1,170.84,170.83,61.04704251]
[1752726657054,0.1,170.84,170.83,31.04704251]
[1752726657657,0.82,170.84,170.83,31.04704251]
[1752726658845,0.82,170.84,170.76,0.72]
[1752726658846,11.72047262,170.84,170.76,0.72]
[1752726659058,0.72,170.83,170.79,5.04704251]
[1752726659262,0.72,170.83,170.8,31.04704251]
[1752726659431,0.72,170.82,170.8,31.04704251]
[1752726660131,0.72,170.82,170.8,26.0]
[1752726660433,5.85445816,170.81,170.8,26.0]
[1752726660634,6.57445816,170.81,170.8,26.0]
[1752726661059,6.57445816,170.81,170.78,5.04704251]
[1752726661233,0.72,170.8,170.78,5.04704251]
[1752726661669,0.72,170.8,170.78,31.04704251]
[1752726662251,5.85548659,170.78,170.77,26.0]
[1752726662552,6.57548659,170.78,170.77,26.0]
[1752726662726,6.57548659,170.78,170.76,5.04704251]
[1752726663132,6.57548659,170.78,170.77,31.04704251]
[1752726663451,6.57480093,170.8,170.77,31.04704251]
[1752726664533,0.72,170.79,170.77,31.04704251]
[1752726664766,0.72,170.78,170.75,5.04704251]
[1752726665233,0.72,170.77,170.73,30.0]
[1752726665550,0.72,170.77,170.73,5.04704251]
[1752726665754,0.72,170.76,170.74,5.04704251]
[1752726666248,5.04704251,170.78,170.72,30.29139998]
[1752726666428,5.85685838,170.74,170.73,5.04704251]
[1752726669054,5.85659503,170.75,170.73,5.04704251]
[1752726669254,5.85659503,170.75,170.74,5.04704251]
[1752726670236,5.8561724,170.76,170.74,5.04704251]
[1752726670438,6.5761724,170.76,170.74,5.04704251]
[1752726670633,6.5761724,170.76,170.72,27.01139998]
[1752726670634,6.5761724,170.76,170.73,5.04704251]
[1752726671051,0.72,170.75,170.73,5.04704251]
[1752726671455,0.72,170.75,170.72,31.33844249]
[1752726671630,0.72,170.78,170.74,5.04704251]
[1752726671955,0.72,170.82,170.77,5.04704251]
[1752726672152,6.57411544,170.82,170.8,5.04704251]
[1752726672459,0.72,170.81,170.79,5.04704251]
[1752726672652,0.72,170.8,170.79,5.04704251]
[1752726673038,0.72,170.8,170.78,5.04704251]
[1752726674336,6.57514001,170.8,170.78,5.04704251]
[1752726676256,5.85514001,170.8,170.78,5.04704251]
[1752726676563,0.72,170.8,170.78,5.04704251]
[1752726677459,6.57411544,170.82,170.78,5.04704251]
[1752726677763,5.8538237,170.83,170.81,5.04704251]
[1752726677956,0.1,170.84,170.82,5.76704251]
[1752726678155,0.1,170.84,170.83,5.76704251]
[1752726679065,0.1,170.84,170.82,26.0]
[1752726679266,0.1,170.84,170.83,5.76704251]
[1752726679652,0.1,170.84,170.83,31.76704251]
[1752726680355,0.1,170.84,170.83,5.04704251]
[1752726680555,5.95343011,170.84,170.83,5.04704251]
[1752726681779,5.95343011,170.84,170.82,26.0]
[1752726681945,6.67343011,170.84,170.83,5.04704251]
[1752726682453,6.67343011,170.84,170.82,31.04704251]
[1752726683662,5.95343011,170.84,170.82,31.04704251]
[1752726684268,5.95343011,170.84,170.83,5.69704251]
[1752726684562,5.95343011,170.84,170.83,5.04704251]
[1752726685453,0.1,170.84,170.83,5.69704251]
[1752726687870,0.1,170.84,170.83,6.19704251]
[1752726689159,0.1,170.84,170.83,30.66]
[1752726689355,5.95343011,170.84,170.83,35.20704251]
[1752726689560,5.95343011,170.84,170.83,5.04704251]
[1752726689758,6.67343011,170.84,170.82,31.04704251]
[1752726690156,0.72,170.83,170.82,26.0]
[1752726690364,0.72,170.83,170.77,0.65]
[1752726690566,5.76704251,170.83,170.78,35.22704251]
[1752726690869,0.72,170.82,170.78,35.22704251]
[1752726691081,0.72,170.82,170.79,5.04704251]
[1752726691260,21.30700538,170.84,170.8,5.04704251]
[1752726691578,5.95343011,170.84,170.83,5.04704251]
[1752726691778,0.1,170.84,170.83,5.69704251]
[1752726692152,5.95343011,170.84,170.83,5.69704251]
[1752726692711,5.95343011,170.84,170.83,0.65]
[1752726692866,5.95343011,170.84,170.82,30.16]
[1752726693068,5.95343011,170.84,170.82,5.04704251]
[1752726693268,6.67343011,170.84,170.82,5.04704251]
[1752726694180,5.95343011,170.84,170.82,5.04704251]
[1752726694761,5.95343011,170.84,170.82,5.69704251]
[1752726694962,5.95343011,170.84,170.82,5.04704251]
[1752726696084,5.95343011,170.84,170.83,5.04704251]
[1752726696889,5.95343011,170.84,170.82,5.04704251]
[1752726697269,5.95343011,170.84,170.82,5.69704251]
[1752726697780,5.95343011,170.84,170.82,5.04704251]
[1752726700661,5.95343011,170.84,170.8,26.0]
[1752726700983,0.72,170.83,170.8,5.04704251]
[1752726701193,5.95343011,170.84,170.81,5.04704251]
[1752726701571,0.72,170.83,170.81,5.04704251]
[1752726702283,0.72,170.83,170.79,0.65]
[1752726702483,0.72,170.83,170.81,5.04704251]
[1752726702782,6.57411544,170.82,170.8,5.04704251]
[1752726702969,6.57411544,170.82,170.77,30.75]
[1752726703168,6.57411544,170.82,170.8,5.04704251]
[1752726703373,6.57411544,170.82,170.81,5.04704251]
[1752726703374,5.85411544,170.82,170.81,5.04704251]
[1752726703995,6.57411544,170.82,170.76,26.65]
[1752726704169,6.57411544,170.82,170.79,5.04704251]
[1752726704170,21.20940404,170.82,170.79,5.04704251]
[1752726704371,0.72,170.81,170.79,5.04704251]
[1752726704762,5.85480093,170.8,170.79,5.04704251]
[1752726704966,5.85480093,170.8,170.79,5.69704251]
[1752726705188,5.85480093,170.8,170.79,5.04704251]
[1752726706792,6.57480093,170.8,170.76,26.0]
[1752726706983,0.72,170.79,170.77,5.04704251]
[1752726707367,5.85480093,170.8,170.77,5.04704251]
[1752726707590,6.57480093,170.8,170.77,5.04704251]
[1752726707795,5.85480093,170.8,170.79,5.04704251]
[1752726709192,5.85445816,170.81,170.78,5.04704251]
[1752726709396,0.72,170.8,170.77,5.04704251]
[1752726710587,0.72,170.8,170.78,5.04704251]
[1752726710794,5.85445816,170.81,170.79,5.04704251]
[1752726711403,5.85445816,170.81,170.78,5.04704251]
[1752726712097,5.85445816,170.81,170.77,0.65]
[1752726712282,5.85445816,170.81,170.78,5.04704251]
[1752726713283,5.85445816,170.81,170.8,5.04704251]
[1752726713478,5.85445816,170.81,170.8,5.69704251]
[1752726714193,20.48892286,170.83,170.8,5.04704251]
[1752726714390,21.18892286,170.83,170.81,5.04704251]
[1752726714994,0.7,170.82,170.8,5.04704251]
[1752726715232,0.7,170.82,170.79,5.04704251]
[1752726716080,0.7,170.82,170.79,5.72704251]
[1752726716374,20.48892286,170.83,170.79,5.72704251]
[1752726716577,21.18892286,170.83,170.79,5.72704251]
[1752726717006,0.7,170.82,170.79,5.04704251]
[1752726717688,5.85445816,170.81,170.79,5.04704251]
[1752726718195,5.85445816,170.81,170.79,5.72704251]
[1752726719310,20.48892286,170.83,170.79,5.72704251]
[1752726719627,21.18892286,170.83,170.79,5.72704251]
[1752726719817,0.7,170.82,170.79,5.04704251]
[1752726720710,5.85445816,170.81,170.79,5.72704251]
[1752726721014,5.85445816,170.81,170.79,5.04704251]
[1752726721217,6.55445816,170.81,170.78,5.04704251]
[1752726721395,5.85445816,170.81,170.78,5.72704251]
[1752726721998,5.85445816,170.81,170.79,5.04704251]
[1752726722799,5.85411544,170.82,170.79,5.04704251]
[1752726722998,6.55411544,170.82,170.79,5.04704251]
[1752726723431,5.85411544,170.82,170.8,5.72704251]
[1752726724026,5.85411544,170.82,170.8,5.04704251]
[1752726724643,5.85377275,170.83,170.8,5.72704251]
[1752726725217,5.85377275,170.83,170.82,5.04704251]
[1752726725399,5.85377275,170.83,170.81,5.04704251]
[1752726725602,5.85377275,170.83,170.8,5.72704251]
[1752726725825,5.85377275,170.83,170.8,0.68]
[1752726726015,5.85377275,170.83,170.8,5.04704251]
[1752726726233,6.55377275,170.83,170.8,5.04704251]
[1752726726415,5.85377275,170.83,170.8,5.72704251]
[1752726726822,5.85377275,170.83,170.81,5.72704251]
[1752726727418,5.85377275,170.83,170.81,5.04704251]
[1752726728620,5.85377275,170.83,170.77,31.85577783]
[1752726728821,5.85377275,170.83,170.81,5.04704251]
[1752726729833,5.85377275,170.83,170.77,31.85577783]
[1752726729834,5.85377275,170.83,170.82,5.04704251]
[1752726730350,5.95356441,170.84,170.82,5.04704251]
[1752726730642,5.95356441,170.84,170.83,5.04704251]
[1752726732439,5.95356441,170.84,170.83,5.72704251]
[1752726732939,5.95356441,170.84,170.83,5.04704251]
[1752726734949,5.95356441,170.84,170.82,0.68]
[1752726735423,5.95356441,170.84,170.82,5.72704251]
[1752726735618,5.95356441,170.84,170.83,5.04704251]
[1752726735822,5.95356441,170.84,170.83,5.72704251]
[1752726738127,0.1,170.84,170.83,5.72704251]
[1752726741730,5.95343011,170.84,170.82,26.0]
[1752726741929,5.95343011,170.84,170.82,31.04704251]
[1752726742136,5.95343011,170.84,170.83,5.04704251]
[1752726742540,5.95343011,170.84,170.82,26.68]
[1752726742747,5.95343011,170.84,170.82,31.72704251]
[1752726743242,5.95343011,170.84,170.82,31.04704251]
[1752726744034,5.95343011,170.84,170.82,26.0]
[1752726744246,5.95343011,170.84,170.79,6.6765]
[1752726744247,5.85411544,170.82,170.79,31.77704251]
[1752726745026,5.85411544,170.82,170.81,5.04704251]
[1752726745264,5.85382504,170.83,170.81,5.04704251]
[1752726745439,5.95351942,170.84,170.82,5.04704251]
[1752726745754,5.95351942,170.84,170.82,5.71704251]
[1752726745944,5.95351942,170.84,170.79,26.06]
[1752726745945,0.1,170.84,170.83,5.71704251]
[1752726748148,0.1,170.84,170.83,0.67]
[1752726748357,0.1,170.84,170.83,31.71704251]
[1752726748828,0.1,170.84,170.83,67.63081526]
[1752726749149,0.1,170.84,170.83,84.41549923]
[1752726750147,0.1,170.84,170.83,79.36845672]
[1752726750335,0.1,170.84,170.83,84.41549923]
[1752726751950,0.1,170.84,170.83,78.56172648]
[1752726752134,0.1,170.84,170.83,61.77704251]
[1752726753535,0.1,170.84,170.83,31.71704251]
[1752726753745,0.1,170.84,170.83,61.79704251]
[1752726755842,0.1,170.84,170.83,67.65081526]
[1752726756543,0.1,170.84,170.83,61.79704251]
[1752726757535,0.1,170.84,170.83,61.77704251]
[1752726758440,0.1,170.84,170.83,26.0]
[1752726758639,5.95343011,170.84,170.81,0.06]
[1752726759164,5.95343011,170.84,170.81,5.10704251]
[1752726760441,0.66,170.83,170.81,5.10704251]
[1752726760663,0.66,170.82,170.81,5.10704251]
[1752726761046,0.66,170.82,170.81,0.06]
[1752726762143,6.51411544,170.82,170.81,0.06]
[1752726764563,11.56115795,170.82,170.81,0.06]
[1752726765372,41.60115795,170.82,170.81,0.06]
[1752726766369,60.00384192,170.82,170.81,1e-08]
[1752726766551,54.95679941,170.82,170.81,1e-08]
[1752726766743,60.00384192,170.82,170.81,1e-08]
[1752726767252,60.00384192,170.82,170.74,0.06]
[1752726767253,16.78468397,170.81,170.74,0.06]
[1752726767455,5.04704251,170.79,170.75,5.04704251]
[1752726767753,0.66,170.78,170.74,0.06]
[1752726767974,0.66,170.78,170.74,5.10704251]
[1752726768148,5.85582947,170.77,170.74,5.10704251]
[1752726768350,0.66,170.76,170.74,5.10704251]
[1752726769473,5.85651537,170.75,170.74,5.10704251]
[1752726770676,6.51651537,170.75,170.74,0.06]
[1752726774259,11.56355788,170.75,170.74,0.06]
[1752726774670,28.34824185,170.75,170.74,0.06]
[1752726775307,28.34824185,170.75,170.74,1e-08]
[1752726777177,58.36824185,170.75,170.74,1e-08]
[1752726780970,5.85720142,170.73,170.71,0.06]
[1752726781274,30.02,170.72,170.71,0.06]
[1752726781596,30.71,170.72,170.71,0.06]
[1752726783303,36.56754451,170.72,170.71,0.06]
[1752726783692,53.58468397,170.71,170.7,0.22099383]
[1752726783897,5.04704251,170.68,170.63,5.10704251]
[1752726784095,30.71,170.67,170.63,5.10704251]
[1752726784286,0.69,170.66,170.63,5.10704251]
[1752726784494,30.71,170.65,170.63,5.10704251]
[1752726785207,5.86029067,170.64,170.63,0.06]
[1752726785387,5.86029067,170.64,170.63,5.10704251]
[1752726786103,5.86029067,170.64,170.63,0.06]
[1752726786986,6.55029067,170.64,170.63,0.06]
[1752726787395,5.86029067,170.64,170.63,0.06]
[1752726787596,35.88005257,170.65,170.63,5.79704251]
[1752726787805,5.85966092,170.66,170.64,5.73704251]
[1752726788106,30.02,170.69,170.65,5.73704251]
[1752726788303,30.02,170.69,170.68,5.04704251]
[1752726788509,5.85823081,170.7,170.68,5.73704251]
[1752726788806,5.85823081,170.7,170.68,0.69]
[1752726789109,5.85823081,170.7,170.68,5.04704251]
[1752726790497,5.85823081,170.7,170.69,5.04704251]
[1752726790703,5.85823081,170.7,170.69,5.73704251]
[1752726791604,5.85823081,170.7,170.69,0.69]
[1752726791912,5.85823081,170.7,170.69,5.73704251]
[1752726792497,35.89795961,170.71,170.69,5.73704251]
[1752726792818,35.87720142,170.73,170.7,5.73704251]
[1752726793114,35.87720142,170.73,170.72,5.04704251]
[1752726793296,35.87720142,170.73,170.72,5.73704251]
[1752726793504,5.85720142,170.73,170.72,5.73704251]
[1752726793699,5.85685838,170.74,170.72,5.73704251]
[1752726794416,5.85685838,170.74,170.73,5.73704251]
[1752726794588,5.85548659,170.78,170.73,5.73704251]
[1752726794790,5.85548659,170.78,170.77,5.04704251]
[1752726794993,5.85548659,170.78,170.77,5.73704251]
[1752726795721,5.85548659,170.78,170.77,5.04704251]
[1752726798217,5.85548659,170.78,170.77,5.73704251]
[1752726798800,35.9052256,170.79,170.77,5.73704251]
[1752726799001,35.9052256,170.79,170.78,5.73704251]
[1752726799210,0.03,170.79,170.78,5.73704251]
[1752726801898,0.03,170.79,170.78,5.04704251]
[1752726802103,0.03,170.79,170.78,5.73704251]
[1752726803308,0.03,170.79,170.78,5.04704251]
[1752726803498,0.03,170.79,170.78,5.73704251]
[1752726806029,0.03,170.79,170.78,5.04704251]
[1752726806827,0.03,170.79,170.78,5.70704251]
[1752726807036,0.03,170.79,170.78,5.04704251]
[1752726807606,0.03,170.79,170.78,5.70704251]
[1752726808743,0.03,170.79,170.76,26.66]
[1752726808906,0.03,170.79,170.77,5.04704251]
[1752726809129,0.75,170.79,170.77,5.04704251]
[1752726809314,0.03,170.79,170.78,5.70704251]
[1752726810621,0.03,170.79,170.76,26.0]
[1752726810823,0.75,170.79,170.76,26.0]
[1752726811010,0.75,170.79,170.77,5.04704251]
[1752726811211,0.03,170.79,170.78,5.04704251]
[1752726811823,0.75,170.79,170.78,5.04704251]
[1752726812024,30.71,170.79,170.75,5.04704251]
[1752726812231,0.72,170.78,170.75,5.04704251]
[1752726812436,0.72,170.77,170.75,5.04704251]
[1752726812637,0.72,170.76,170.74,5.04704251]
[1752726812833,11.62355788,170.75,170.71,0.06]
[1752726813050,5.04704251,170.73,170.71,0.06]
[1752726813251,29.98,170.72,170.71,0.06]
[1752726813439,30.7,170.72,170.71,0.06]
[1752726813640,29.98,170.72,170.71,0.06]
[1752726814941,35.83754451,170.72,170.71,0.06]
[1752726815347,36.55754451,170.72,170.71,0.06]
[1752726815543,5.85716493,170.74,170.71,5.76704251]
[1752726815854,5.85716493,170.74,170.73,5.04704251]
[1752726816159,5.85716493,170.74,170.72,5.04704251]
[1752726816357,6.57716493,170.74,170.72,5.04704251]
[1752726816543,35.83716493,170.74,170.72,5.04704251]
[1752726818275,35.83716493,170.74,170.71,0.06]